[Event "Live Chess"]
[Site "Chess.com"]
[Date "2023.05.21"]
[Round "-"]
[White "Berdgross"]
[Black "Anirudh_23"]
[Result "0-1"]
[WhiteElo "697"]
[BlackElo "1884"]
[TimeControl "300"]
[EndTime "6:21:11 PDT"]
[Termination "Anirudh_23 won by resignation"]

1. d4 {[%clk 0:04:58.5]} 1... Nf6 {[%clk 0:04:58.6]} 2. e4 {[%clk 0:04:58.4]}
2... Nxe4 {[%clk 0:04:57]} 3. Qe2 {[%clk 0:04:56.9]} 3... Nf6 {[%clk 0:04:54.6]}
4. Nf3 {[%clk 0:04:55.4]} 4... g6 {[%clk 0:04:53]} 5. Bg5 {[%clk 0:04:54.9]}
5... Bg7 {[%clk 0:04:51.6]} 6. Nc3 {[%clk 0:04:52.4]} 6... O-O {[%clk
0:04:50.2]} 7. Ne4 {[%clk 0:04:49.7]} 7... Nxe4 {[%clk 0:04:48.4]} 8. Qxe4
{[%clk 0:04:48.1]} 8... Re8 {[%clk 0:04:32.3]} 9. O-O-O {[%clk 0:04:43.2]} 9...
d5 {[%clk 0:04:29.5]} 10. Qe1 {[%clk 0:04:36.7]} 10... Bf5 {[%clk 0:04:27.1]}
11. Ne5 {[%clk 0:04:21]} 11... f6 {[%clk 0:04:19.7]} 12. Bxf6 {[%clk 0:04:16.1]}
12... exf6 {[%clk 0:04:17.8]} 13. Nd3 {[%clk 0:04:11.9]} 13... Rxe1 {[%clk
0:04:15.7]} 14. Nxe1 {[%clk 0:04:10.2]} 14... Bh6+ {[%clk 0:04:13.3]} 0-1

[Event "Live Chess"]
[Site "Chess.com"]
[Date "2023.05.21"]
[Round "-"]
[White "MartynColebrook"]
[Black "smoggyrabbit"]
[Result "1-0"]
[WhiteElo "1130"]
[BlackElo "1632"]
[TimeControl "300"]
[EndTime "6:21:16 PDT"]
[Termination "MartynColebrook won by checkmate"]

1. e4 {[%clk 0:04:57.1]} 1... e6 {[%clk 0:04:59.1]} 2. Nf3 {[%clk 0:04:55.8]}
2... d5 {[%clk 0:04:58.1]} 3. exd5 {[%clk 0:04:54]} 3... exd5 {[%clk 0:04:57.4]}
4. c4 {[%clk 0:04:52.5]} 4... c6 {[%clk 0:04:51.9]} 5. d4 {[%clk 0:04:50.8]}
5... Bb4+ {[%clk 0:04:48.8]} 6. Bd2 {[%clk 0:04:47.1]} 6... Bxd2+ {[%clk
0:04:47.4]} 7. Qxd2 {[%clk 0:04:45.4]} 7... Ne7 {[%clk 0:04:43.6]} 8. cxd5
{[%clk 0:04:42.4]} 8... Nxd5 {[%clk 0:04:39.3]} 9. Nc3 {[%clk 0:04:41.5]} 9...
O-O {[%clk 0:04:36.9]} 10. Bc4 {[%clk 0:04:34.2]} 10... Re8+ {[%clk 0:04:32.1]}
11. Kd1 {[%clk 0:04:32.6]} 11... Nxc3+ {[%clk 0:04:30.7]} 12. bxc3 {[%clk
0:04:29.1]} 12... Be6 {[%clk 0:04:29.1]} 13. Bxe6 {[%clk 0:04:23]} 13... Rxe6
{[%clk 0:04:27.7]} 14. Kc2 {[%clk 0:04:13.9]} 14... Qe8 {[%clk 0:04:23.2]} 15.
Rhe1 {[%clk 0:04:09.3]} 15... Nd7 {[%clk 0:04:20.2]} 16. Ng5 {[%clk 0:04:01.1]}
16... Rxe1 {[%clk 0:04:08.2]} 17. Rxe1 {[%clk 0:03:59]} 17... Qd8 {[%clk
0:04:03.7]} 18. Qf4 {[%clk 0:03:44.3]} 18... Qf6 {[%clk 0:03:58.2]} 19. Qxf6
{[%clk 0:03:08.3]} 19... Nxf6 {[%clk 0:03:58.1]} 20. Re7 {[%clk 0:03:06.3]}
20... Rf8 {[%clk 0:03:56.4]} 21. Rxb7 {[%clk 0:03:00.7]} 21... h6 {[%clk
0:03:54.4]} 22. Nf3 {[%clk 0:02:56.3]} 22... Ng4 {[%clk 0:03:48.5]} 23. Rxa7
{[%clk 0:02:49.8]} 23... Nxf2 {[%clk 0:03:46.4]} 24. Ne5 {[%clk 0:02:47.2]}
24... Ne4 {[%clk 0:03:39.4]} 25. Nxc6 {[%clk 0:02:45.3]} 25... Rc8 {[%clk
0:03:37.9]} 26. Ne7+ {[%clk 0:02:40.6]} 26... Kf8 {[%clk 0:03:32.5]} 27. Nxc8
{[%clk 0:02:38.8]} 27... g5 {[%clk 0:03:30.1]} 28. Ra8 {[%clk 0:02:32.9]} 28...
Kg7 {[%clk 0:03:28.6]} 29. Ne7 {[%clk 0:02:28.2]} 29... h5 {[%clk 0:03:26.7]}
30. Rg8+ {[%clk 0:02:24.7]} 30... Kf6 {[%clk 0:03:25.2]} 31. Nd5+ {[%clk
0:02:18]} 31... Ke6 {[%clk 0:03:23.4]} 32. Nc7+ {[%clk 0:02:06.7]} 32... Kd7
{[%clk 0:03:21.8]} 33. Nb5 {[%clk 0:02:02.1]} 33... g4 {[%clk 0:03:19.1]} 34. a4
{[%clk 0:01:55]} 34... f5 {[%clk 0:03:16.6]} 35. a5 {[%clk 0:01:53.3]} 35... f4
{[%clk 0:03:13.5]} 36. Rg7+ {[%clk 0:01:50.6]} 36... Kc6 {[%clk 0:03:12.1]} 37.
c4 {[%clk 0:01:49]} 37... f3 {[%clk 0:03:10.2]} 38. gxf3 {[%clk 0:01:47.3]}
38... gxf3 {[%clk 0:03:08.8]} 39. Rg6+ {[%clk 0:01:40.4]} 39... Kb7 {[%clk
0:03:06.3]} 40. Kd1 {[%clk 0:01:20.5]} 40... f2 {[%clk 0:03:02.5]} 41. Ke2
{[%clk 0:01:14.5]} 41... h4 {[%clk 0:03:00.1]} 42. Rg4 {[%clk 0:01:07.8]} 42...
Nf6 {[%clk 0:02:42]} 43. Rxh4 {[%clk 0:01:03.2]} 43... Ne8 {[%clk 0:02:36.7]}
44. d5 {[%clk 0:01:00]} 44... Nd6 {[%clk 0:02:34.6]} 45. c5 {[%clk 0:00:57.9]}
45... Nxb5 {[%clk 0:02:33.3]} 46. c6+ {[%clk 0:00:55.4]} 46... Ka6 {[%clk
0:02:32]} 47. Kxf2 {[%clk 0:00:52.6]} 47... Kxa5 {[%clk 0:02:31]} 48. Rh7 {[%clk
0:00:45.5]} 48... Kb6 {[%clk 0:02:29.7]} 49. h4 {[%clk 0:00:41.2]} 49... Kc5
{[%clk 0:02:28.1]} 50. c7 {[%clk 0:00:37.9]} 50... Nd6 {[%clk 0:02:21.8]} 51. h5
{[%clk 0:00:31.3]} 51... Kxd5 {[%clk 0:02:21.1]} 52. h6 {[%clk 0:00:29.9]} 52...
Ke6 {[%clk 0:02:19.9]} 53. Rh8 {[%clk 0:00:26.5]} 53... Kf6 {[%clk 0:02:18.8]}
54. h7 {[%clk 0:00:24.7]} 54... Kg7 {[%clk 0:02:16.4]} 55. Rd8 {[%clk
0:00:17.5]} 55... Kxh7 {[%clk 0:01:52]} 56. Rxd6 {[%clk 0:00:14.3]} 56... Kg7
{[%clk 0:01:50.8]} 57. c8=Q {[%clk 0:00:12.1]} 57... Kf7 {[%clk 0:01:49.6]} 58.
Qe6+ {[%clk 0:00:10.2]} 58... Kg7 {[%clk 0:01:48.6]} 59. Qe7+ {[%clk 0:00:08.5]}
59... Kg8 {[%clk 0:01:44.6]} 60. Rd8# {[%clk 0:00:07.2]} 1-0

[Event "Live Chess"]
[Site "Chess.com"]
[Date "2023.05.21"]
[Round "-"]
[White "Brooms1989"]
[Black "JoeRoot66"]
[Result "0-1"]
[WhiteElo "1158"]
[BlackElo "1902"]
[TimeControl "300"]
[EndTime "6:21:17 PDT"]
[Termination "JoeRoot66 won by resignation"]

1. e4 {[%clk 0:04:57.7]} 1... c6 {[%clk 0:04:59.3]} 2. d4 {[%clk 0:04:56.4]}
2... d5 {[%clk 0:04:59.2]} 3. f3 {[%clk 0:04:54.9]} 3... dxe4 {[%clk 0:04:58.3]}
4. fxe4 {[%clk 0:04:54.1]} 4... e5 {[%clk 0:04:58.2]} 5. Nf3 {[%clk 0:04:52.2]}
5... Bg4 {[%clk 0:04:57]} 6. Be3 {[%clk 0:04:48.5]} 6... Nd7 {[%clk 0:04:46.6]}
7. c3 {[%clk 0:04:46.8]} 7... Ngf6 {[%clk 0:04:45.4]} 8. Bd3 {[%clk 0:04:44.2]}
8... Bd6 {[%clk 0:04:41.2]} 9. h3 {[%clk 0:04:40.6]} 9... Bxf3 {[%clk
0:04:39.6]} 10. Qxf3 {[%clk 0:04:39.2]} 10... O-O {[%clk 0:04:36.7]} 11. O-O
{[%clk 0:04:37.7]} 11... Qc7 {[%clk 0:04:34.8]} 12. Bg5 {[%clk 0:04:34]} 12...
Rae8 {[%clk 0:04:32.8]} 13. Bxf6 {[%clk 0:04:32.2]} 13... Nxf6 {[%clk
0:04:31.5]} 14. Nd2 {[%clk 0:04:15.4]} 14... exd4 {[%clk 0:04:24.8]} 15. cxd4
{[%clk 0:04:13.2]} 15... Qb6 {[%clk 0:04:24.6]} 16. Nb3 {[%clk 0:04:08.1]} 16...
Nd7 {[%clk 0:04:12.4]} 17. Bc4 {[%clk 0:04:00.8]} 17... Ne5 {[%clk 0:04:09.6]}
18. Qe2 {[%clk 0:03:53]} 18... Nxc4 {[%clk 0:04:07.3]} 19. Qxc4 {[%clk
0:03:52.1]} 19... Rxe4 {[%clk 0:04:06.9]} 20. Qd3 {[%clk 0:03:45.2]} 20... Rfe8
{[%clk 0:04:02.2]} 21. Qf3 {[%clk 0:03:33.7]} 21... f6 {[%clk 0:03:58.8]} 22.
Rae1 {[%clk 0:03:28]} 22... Rxe1 {[%clk 0:03:55.6]} 23. Rxe1 {[%clk 0:03:27.9]}
23... Rxe1+ {[%clk 0:03:54.4]} 0-1

[Event "Live Chess"]
[Site "Chess.com"]
[Date "2023.05.21"]
[Round "-"]
[White "HoarseyHorsey"]
[Black "Alfiedog12"]
[Result "1-0"]
[WhiteElo "1467"]
[BlackElo "916"]
[TimeControl "300"]
[EndTime "6:21:17 PDT"]
[Termination "HoarseyHorsey won by resignation"]

1. d4 {[%clk 0:04:58.6]} 1... d5 {[%clk 0:04:58.5]} 2. c4 {[%clk 0:04:57.9]}
2... c6 {[%clk 0:04:58.2]} 3. cxd5 {[%clk 0:04:57.1]} 3... cxd5 {[%clk
0:04:56.7]} 4. Bf4 {[%clk 0:04:56.7]} 4... Bf5 {[%clk 0:04:55]} 5. e3 {[%clk
0:04:55]} 5... Nf6 {[%clk 0:04:54.5]} 6. Nf3 {[%clk 0:04:53.8]} 6... e6 {[%clk
0:04:53.9]} 7. Qb3 {[%clk 0:04:48.6]} 7... Qb6 {[%clk 0:04:50.2]} 8. Bb5+ {[%clk
0:04:44]} 8... Nc6 {[%clk 0:04:43.1]} 9. Ne5 {[%clk 0:04:42.3]} 9... Rc8 {[%clk
0:04:34.4]} 10. Nc3 {[%clk 0:04:32.6]} 10... a6 {[%clk 0:04:22.7]} 11. Bxc6+
{[%clk 0:04:24.9]} 11... Rxc6 {[%clk 0:04:03.9]} 12. Nxc6 {[%clk 0:04:22.8]}
12... Qxb3 {[%clk 0:04:01.7]} 13. axb3 {[%clk 0:04:19.6]} 13... bxc6 {[%clk
0:03:50.5]} 14. Rxa6 {[%clk 0:04:18.1]} 14... Bb4 {[%clk 0:03:22.4]} 15. Ra8+
{[%clk 0:04:10.8]} 1-0

[Event "Live Chess"]
[Site "Chess.com"]
[Date "2023.05.21"]
[Round "-"]
[White "EdenHazard8"]
[Black "PantherCal"]
[Result "1-0"]
[WhiteElo "1968"]
[BlackElo "1801"]
[TimeControl "300"]
[EndTime "6:21:35 PDT"]
[Termination "EdenHazard8 won by resignation"]

1. e4 {[%clk 0:04:57]} 1... d5 {[%clk 0:04:58.9]} 2. exd5 {[%clk 0:04:56]} 2...
Qxd5 {[%clk 0:04:58.8]} 3. Nc3 {[%clk 0:04:55.8]} 3... Qa5 {[%clk 0:04:57.5]} 4.
d4 {[%clk 0:04:55.7]} 4... Nf6 {[%clk 0:04:56.1]} 5. Nf3 {[%clk 0:04:53.7]} 5...
Bf5 {[%clk 0:04:55.5]} 6. Bd3 {[%clk 0:04:51.9]} 6... Bxd3 {[%clk 0:04:54]} 7.
Qxd3 {[%clk 0:04:51.8]} 7... c6 {[%clk 0:04:53.5]} 8. Bd2 {[%clk 0:04:50.2]}
8... e6 {[%clk 0:04:52.3]} 9. O-O {[%clk 0:04:47.5]} 9... Nbd7 {[%clk
0:04:51.3]} 10. Rfe1 {[%clk 0:04:45.1]} 10... Qc7 {[%clk 0:04:49.4]} 11. Ne4
{[%clk 0:04:42.7]} 11... Be7 {[%clk 0:04:44.7]} 12. c4 {[%clk 0:04:41.1]} 12...
O-O-O {[%clk 0:04:41]} 13. d5 {[%clk 0:04:37.1]} 13... exd5 {[%clk 0:04:32.4]}
14. Neg5 {[%clk 0:04:33.9]} 14... dxc4 {[%clk 0:04:20.7]} 15. Qxc4 {[%clk
0:04:29.5]} 15... Nb6 {[%clk 0:04:08.7]} 16. Qxf7 {[%clk 0:04:18]} 16... Nbd5
{[%clk 0:02:51.1]} 17. Ne6 {[%clk 0:04:13.3]} 17... Qd6 {[%clk 0:02:50.6]} 18.
Nxd8 {[%clk 0:04:11.6]} 18... Rxd8 {[%clk 0:02:48.8]} 19. Re6 {[%clk 0:04:11.1]}
19... Qd7 {[%clk 0:02:43.1]} 20. Rae1 {[%clk 0:04:08.6]} 20... Re8 {[%clk
0:02:36.5]} 21. Ne5 {[%clk 0:04:03.1]} 21... Qd8 {[%clk 0:02:34.5]} 22. Bg5
{[%clk 0:03:52.8]} 22... Rf8 {[%clk 0:02:11.9]} 23. Rxe7 {[%clk 0:03:39.2]}
23... Rxf7 {[%clk 0:01:49]} 24. Rxf7 {[%clk 0:03:37.2]} 24... Qa5 {[%clk
0:01:15.7]} 25. Rf1 {[%clk 0:03:25.8]} 25... Qxa2 {[%clk 0:00:57]} 26. Rxg7
{[%clk 0:03:23.1]} 26... Qxb2 {[%clk 0:00:55]} 27. Nf7 {[%clk 0:03:21.1]} 27...
Ne4 {[%clk 0:00:52.3]} 28. Bh6 {[%clk 0:03:15.7]} 28... Qf6 {[%clk 0:00:43.7]}
29. Rxh7 {[%clk 0:03:03.5]} 29... Nf4 {[%clk 0:00:27.7]} 30. Bxf4 {[%clk
0:02:49.6]} 30... Qxf4 {[%clk 0:00:27.6]} 31. Nh6 {[%clk 0:02:46.2]} 31... Ng5
{[%clk 0:00:18.9]} 32. Rg7 {[%clk 0:02:42.9]} 32... Nf3+ {[%clk 0:00:17.1]} 33.
gxf3 {[%clk 0:02:41.9]} 33... Qxh6 {[%clk 0:00:16.7]} 34. Rg8+ {[%clk 0:02:41]}
34... Kc7 {[%clk 0:00:16.1]} 35. Rg3 {[%clk 0:02:40.1]} 35... Qh4 {[%clk
0:00:14.4]} 36. Re1 {[%clk 0:02:38.4]} 36... b5 {[%clk 0:00:13.1]} 37. Re4
{[%clk 0:02:37.4]} 37... Kb6 {[%clk 0:00:13]} 38. Rxh4 {[%clk 0:02:36.5]} 38...
a5 {[%clk 0:00:12.3]} 39. Re4 {[%clk 0:02:35.7]} 39... a4 {[%clk 0:00:12.2]} 40.
f4 {[%clk 0:02:35.6]} 40... Ka5 {[%clk 0:00:11.7]} 41. f5 {[%clk 0:02:35]} 41...
b4 {[%clk 0:00:11.6]} 42. f6 {[%clk 0:02:34.2]} 42... a3 {[%clk 0:00:11.5]} 43.
f7 {[%clk 0:02:31.2]} 43... a2 {[%clk 0:00:11.4]} 44. Re1 {[%clk 0:02:29.6]}
44... b3 {[%clk 0:00:10.4]} 45. Rxb3 {[%clk 0:02:28.1]} 1-0

[Event "Live Chess"]
[Site "Chess.com"]
[Date "2023.05.21"]
[Round "-"]
[White "JanMur7"]
[Black "GMHarry-youtube"]
[Result "0-1"]
[WhiteElo "1962"]
[BlackElo "2032"]
[TimeControl "300"]
[EndTime "6:21:36 PDT"]
[Termination "GMHarry-youtube won by checkmate"]

1. e4 {[%clk 0:04:57.8]} 1... c5 {[%clk 0:04:58.7]} 2. Nf3 {[%clk 0:04:56.2]}
2... d6 {[%clk 0:04:58.2]} 3. c3 {[%clk 0:04:55.1]} 3... Nf6 {[%clk 0:04:57.4]}
4. Be2 {[%clk 0:04:53.8]} 4... g6 {[%clk 0:04:56.8]} 5. O-O {[%clk 0:04:52.3]}
5... Bg7 {[%clk 0:04:56.2]} 6. d3 {[%clk 0:04:50.5]} 6... O-O {[%clk 0:04:55.4]}
7. Nbd2 {[%clk 0:04:49.9]} 7... Nc6 {[%clk 0:04:54.8]} 8. Re1 {[%clk 0:04:49.4]}
8... e5 {[%clk 0:04:53.9]} 9. Nf1 {[%clk 0:04:49]} 9... Nd7 {[%clk 0:04:53.3]}
10. Ne3 {[%clk 0:04:47.9]} 10... f5 {[%clk 0:04:52.8]} 11. Nd5 {[%clk
0:04:45.2]} 11... f4 {[%clk 0:04:51]} 12. Bf1 {[%clk 0:04:37.3]} 12... Ne7
{[%clk 0:04:44.5]} 13. Nxe7+ {[%clk 0:04:31.5]} 13... Qxe7 {[%clk 0:04:44.4]}
14. d4 {[%clk 0:04:10]} 14... g5 {[%clk 0:04:41.1]} 15. dxe5 {[%clk 0:04:06.2]}
15... Nxe5 {[%clk 0:04:36.2]} 16. Nxe5 {[%clk 0:04:05]} 16... Bxe5 {[%clk
0:04:32.3]} 17. Be2 {[%clk 0:04:03]} 17... Qg7 {[%clk 0:04:24.5]} 18. Bg4 {[%clk
0:03:59.7]} 18... Qg6 {[%clk 0:04:18.3]} 19. Bxc8 {[%clk 0:03:55.5]} 19... Raxc8
{[%clk 0:04:15]} 20. Qd5+ {[%clk 0:03:54]} 20... Kh8 {[%clk 0:04:11.4]} 21. f3
{[%clk 0:03:47.6]} 21... h5 {[%clk 0:03:51.9]} 22. Bd2 {[%clk 0:03:29.1]} 22...
g4 {[%clk 0:03:46.6]} 23. Rf1 {[%clk 0:03:27.6]} 23... h4 {[%clk 0:03:39.3]} 24.
Kh1 {[%clk 0:03:18.5]} 24... h3 {[%clk 0:03:31.7]} 25. gxh3 {[%clk 0:03:15.9]}
25... gxh3 {[%clk 0:03:28.5]} 26. Rg1 {[%clk 0:03:14.4]} 26... Qh7 {[%clk
0:03:21.2]} 27. Rg4 {[%clk 0:03:10.5]} 27... Rg8 {[%clk 0:03:18.3]} 28. Rag1
{[%clk 0:03:09.7]} 28... Rxg4 {[%clk 0:03:16.8]} 29. Rxg4 {[%clk 0:03:09.6]}
29... Rg8 {[%clk 0:03:12.9]} 30. Rxg8+ {[%clk 0:03:00.3]} 30... Qxg8 {[%clk
0:03:12.8]} 31. Qxg8+ {[%clk 0:02:59.8]} 31... Kxg8 {[%clk 0:03:12.7]} 32. b3
{[%clk 0:02:59]} 32... b5 {[%clk 0:03:01.9]} 33. c4 {[%clk 0:02:57.7]} 33... a6
{[%clk 0:02:58.9]} 34. Kg1 {[%clk 0:02:54.6]} 34... Bd4+ {[%clk 0:02:55]} 35.
Kf1 {[%clk 0:02:52.7]} 35... Be5 {[%clk 0:02:51.8]} 36. Ke2 {[%clk 0:02:49.7]}
36... Kf7 {[%clk 0:02:50]} 37. Kd3 {[%clk 0:02:44.1]} 37... Kf6 {[%clk
0:02:36.7]} 38. Ke2 {[%clk 0:02:28.2]} 38... Kg5 {[%clk 0:02:18.8]} 39. Be1
{[%clk 0:02:21.3]} 39... Bd4 {[%clk 0:02:14.3]} 40. Bf2 {[%clk 0:02:19.8]} 40...
Bxf2 {[%clk 0:02:08.3]} 41. Kxf2 {[%clk 0:02:19.7]} 41... Kf6 {[%clk 0:02:03.9]}
42. Ke2 {[%clk 0:02:17.7]} 42... Ke5 {[%clk 0:02:01.4]} 43. Kd3 {[%clk
0:02:16.2]} 43... b4 {[%clk 0:01:59]} 44. Ke2 {[%clk 0:01:55.3]} 44... Kd4
{[%clk 0:01:56.9]} 45. Kd2 {[%clk 0:01:53.8]} 45... a5 {[%clk 0:01:55.8]} 46.
Ke2 {[%clk 0:01:53.3]} 46... Kc3 {[%clk 0:01:54.3]} 47. Kf2 {[%clk 0:01:52.9]}
47... Kb2 {[%clk 0:01:52.6]} 48. Ke2 {[%clk 0:01:52.4]} 48... Kxa2 {[%clk
0:01:51.8]} 49. Kd3 {[%clk 0:01:51.9]} 49... Kxb3 {[%clk 0:01:51.1]} 50. e5
{[%clk 0:01:51.8]} 50... dxe5 {[%clk 0:01:49.9]} 51. Ke4 {[%clk 0:01:51.7]}
51... Kxc4 {[%clk 0:01:49.2]} 52. Kxe5 {[%clk 0:01:51.6]} 52... b3 {[%clk
0:01:48.6]} 53. Kxf4 {[%clk 0:01:51.5]} 53... b2 {[%clk 0:01:48.5]} 54. Kg3
{[%clk 0:01:49.1]} 54... b1=Q {[%clk 0:01:48.4]} 55. Kxh3 {[%clk 0:01:49]} 55...
a4 {[%clk 0:01:48.3]} 56. Kg4 {[%clk 0:01:48.9]} 56... a3 {[%clk 0:01:48.2]} 57.
h4 {[%clk 0:01:48.8]} 57... a2 {[%clk 0:01:48.1]} 58. Kg5 {[%clk 0:01:48.7]}
58... a1=Q {[%clk 0:01:48]} 59. h5 {[%clk 0:01:48.6]} 59... Qg7+ {[%clk
0:01:44.7]} 60. Kh4 {[%clk 0:01:47.6]} 60... Qh1# {[%clk 0:01:42.7]} 0-1

[Event "Live Chess"]
[Site "Chess.com"]
[Date "2023.05.21"]
[Round "-"]
[White "onemoretime1975"]
[Black "zdanevych"]
[Result "1-0"]
[WhiteElo "1866"]
[BlackElo "1516"]
[TimeControl "300"]
[EndTime "6:21:37 PDT"]
[Termination "onemoretime1975 won by resignation"]

1. e4 {[%clk 0:04:53]} 1... c5 {[%clk 0:04:58.5]} 2. Nf3 {[%clk 0:04:51.3]} 2...
e6 {[%clk 0:04:57.1]} 3. g3 {[%clk 0:04:47.5]} 3... d5 {[%clk 0:04:56.5]} 4.
exd5 {[%clk 0:04:45.9]} 4... exd5 {[%clk 0:04:56]} 5. d4 {[%clk 0:04:45.1]} 5...
Nc6 {[%clk 0:04:54.4]} 6. c3 {[%clk 0:04:43.2]} 6... Nf6 {[%clk 0:04:52.7]} 7.
Bg2 {[%clk 0:04:41.6]} 7... h6 {[%clk 0:04:51]} 8. O-O {[%clk 0:04:40.2]} 8...
Bg4 {[%clk 0:04:50.5]} 9. dxc5 {[%clk 0:04:36.5]} 9... Bxc5 {[%clk 0:04:48.9]}
10. h3 {[%clk 0:04:35]} 10... Bh5 {[%clk 0:04:47.5]} 11. Nbd2 {[%clk 0:04:30.6]}
11... O-O {[%clk 0:04:45.8]} 12. Nb3 {[%clk 0:04:29.2]} 12... Bb6 {[%clk
0:04:37.8]} 13. Nbd4 {[%clk 0:04:27.5]} 13... Nxd4 {[%clk 0:04:33.8]} 14. cxd4
{[%clk 0:04:24.6]} 14... Ne4 {[%clk 0:04:22.8]} 15. Be3 {[%clk 0:04:13.6]} 15...
Ng5 {[%clk 0:04:17.8]} 16. g4 {[%clk 0:04:10.3]} 16... Nxf3+ {[%clk 0:04:08.9]}
17. Qxf3 {[%clk 0:04:03.5]} 17... Bg6 {[%clk 0:04:03.9]} 18. Qxd5 {[%clk
0:04:02]} 18... Qxd5 {[%clk 0:04:03.4]} 19. Bxd5 {[%clk 0:04:00]} 19... Rad8
{[%clk 0:03:59.2]} 20. Bxb7 {[%clk 0:03:57.8]} 20... Bxd4 {[%clk 0:03:56.5]} 21.
Bxd4 {[%clk 0:03:55.4]} 21... Rxd4 {[%clk 0:03:56.4]} 22. Rad1 {[%clk
0:03:50.2]} 22... Rfd8 {[%clk 0:03:54.3]} 23. Rxd4 {[%clk 0:03:47]} 23... Rxd4
{[%clk 0:03:54.2]} 24. b3 {[%clk 0:03:14.8]} 24... Rd2 {[%clk 0:03:47.8]} 25. a4
{[%clk 0:03:07.3]} 25... Rb2 {[%clk 0:03:40]} 26. Bd5 {[%clk 0:03:05.1]} 26...
Bc2 {[%clk 0:03:37.4]} 27. Re1 {[%clk 0:02:58.9]} 27... Bxb3 {[%clk 0:03:32.6]}
28. Re8+ {[%clk 0:02:50.2]} 28... Kh7 {[%clk 0:03:31]} 29. Bxb3 {[%clk
0:02:47.6]} 29... Rxb3 {[%clk 0:03:29.1]} 30. Re7 {[%clk 0:02:46.4]} 30... Rb1+
{[%clk 0:03:23.7]} 31. Kg2 {[%clk 0:02:43.8]} 31... f5 {[%clk 0:03:11.6]} 32.
Rxa7 {[%clk 0:02:35.9]} 32... fxg4 {[%clk 0:03:10.1]} 33. hxg4 {[%clk
0:02:33.6]} 33... Rb4 {[%clk 0:03:07.5]} 34. Kg3 {[%clk 0:02:31.1]} 34... Kg6
{[%clk 0:03:07]} 35. Ra6+ {[%clk 0:02:25.9]} 35... Kf7 {[%clk 0:03:05.1]} 36. a5
{[%clk 0:02:21]} 36... Rb5 {[%clk 0:02:52.5]} 37. f3 {[%clk 0:02:15.5]} 37... h5
{[%clk 0:02:39.1]} 38. Ra7+ {[%clk 0:02:06.5]} 38... Kg6 {[%clk 0:02:35.6]} 39.
gxh5+ {[%clk 0:01:59.5]} 39... Rxh5 {[%clk 0:02:30.8]} 40. a6 {[%clk 0:01:55.6]}
40... Ra5 {[%clk 0:02:27.6]} 41. Ra8 {[%clk 0:01:51.7]} 41... Kg5 {[%clk
0:02:07.2]} 42. a7 {[%clk 0:01:45.3]} 42... g6 {[%clk 0:02:06.2]} 43. f4+ {[%clk
0:01:43.4]} 43... Kf5 {[%clk 0:01:23.4]} 44. Rf8+ {[%clk 0:01:41.3]} 1-0

[Event "Live Chess"]
[Site "Chess.com"]
[Date "2023.05.21"]
[Round "-"]
[White "Doge_Dandolo"]
[Black "LordBenin"]
[Result "1-0"]
[WhiteElo "1898"]
[BlackElo "1375"]
[TimeControl "300"]
[EndTime "6:21:41 PDT"]
[Termination "Doge_Dandolo won on time"]

1. Nf3 {[%clk 0:04:55.4]} 1... d5 {[%clk 0:04:58.2]} 2. d4 {[%clk 0:04:51.8]}
2... Nf6 {[%clk 0:04:56.8]} 3. c4 {[%clk 0:04:50.6]} 3... dxc4 {[%clk
0:04:53.4]} 4. Bg5 {[%clk 0:04:47.2]} 4... e6 {[%clk 0:04:50.1]} 5. e3 {[%clk
0:04:46.1]} 5... Be7 {[%clk 0:04:48.5]} 6. Bxc4 {[%clk 0:04:44.7]} 6... h6
{[%clk 0:04:46.2]} 7. Bxf6 {[%clk 0:04:42]} 7... Bxf6 {[%clk 0:04:44.4]} 8. Nc3
{[%clk 0:04:38]} 8... a6 {[%clk 0:04:42.3]} 9. Bb3 {[%clk 0:04:35.4]} 9... O-O
{[%clk 0:04:40.4]} 10. O-O {[%clk 0:04:34.1]} 10... b5 {[%clk 0:04:38]} 11. Qd3
{[%clk 0:04:32.2]} 11... Bb7 {[%clk 0:04:34.2]} 12. Bc2 {[%clk 0:04:27.5]} 12...
g6 {[%clk 0:04:29.9]} 13. Nd2 {[%clk 0:04:24.1]} 13... Bg7 {[%clk 0:04:21.1]}
14. Rad1 {[%clk 0:04:21.4]} 14... Nd7 {[%clk 0:04:08.1]} 15. h4 {[%clk
0:04:19.5]} 15... e5 {[%clk 0:03:57]} 16. h5 {[%clk 0:04:13.6]} 16... exd4
{[%clk 0:03:41.9]} 17. hxg6 {[%clk 0:04:11.4]} 17... f5 {[%clk 0:03:34.1]} 18.
exd4 {[%clk 0:04:07.1]} 18... Qf6 {[%clk 0:03:18.1]} 19. Nf3 {[%clk 0:03:42.3]}
19... Qxg6 {[%clk 0:03:11.2]} 20. Nh4 {[%clk 0:03:38.9]} 20... Qg5 {[%clk
0:02:40.4]} 21. Nf3 {[%clk 0:03:27.4]} 21... Bxf3 {[%clk 0:02:31.6]} 22. Qxf3
{[%clk 0:03:16.3]} 22... Nb6 {[%clk 0:02:11.8]} 23. Bb3+ {[%clk 0:02:59.6]}
23... Kh8 {[%clk 0:02:09.3]} 24. d5 {[%clk 0:02:54.9]} 24... Rad8 {[%clk
0:02:04.9]} 25. Rfe1 {[%clk 0:02:49.7]} 25... f4 {[%clk 0:01:49.2]} 26. Ne4
{[%clk 0:02:28.3]} 26... Qf5 {[%clk 0:01:25.8]} 27. Nc5 {[%clk 0:02:20.1]} 27...
Rde8 {[%clk 0:01:12.8]} 28. Ne6 {[%clk 0:02:12.1]} 28... Rf6 {[%clk 0:01:06.2]}
29. Nxc7 {[%clk 0:02:00]} 29... Rxe1+ {[%clk 0:01:04.1]} 30. Rxe1 {[%clk
0:01:54.6]} 30... Rd6 {[%clk 0:00:59.6]} 31. Ne8 {[%clk 0:01:37.8]} 31... Rg6
{[%clk 0:00:50.2]} 32. d6 {[%clk 0:01:31.4]} 32... Bxb2 {[%clk 0:00:42.5]} 33.
Rd1 {[%clk 0:01:23.5]} 33... Nc4 {[%clk 0:00:37.7]} 34. d7 {[%clk 0:01:16.5]}
1-0

[Event "Live Chess"]
[Site "Chess.com"]
[Date "2023.05.21"]
[Round "-"]
[White "ProfPoisson"]
[Black "OleksiyJr1"]
[Result "1-0"]
[WhiteElo "1219"]
[BlackElo "1004"]
[TimeControl "300"]
[EndTime "6:21:45 PDT"]
[Termination "ProfPoisson won by resignation"]

1. e4 {[%clk 0:04:56]} 1... c5 {[%clk 0:04:57.3]} 2. Nf3 {[%clk 0:04:52.3]} 2...
Nc6 {[%clk 0:04:55.9]} 3. Bb5 {[%clk 0:04:49.6]} 3... a6 {[%clk 0:04:54.2]} 4.
Bxc6 {[%clk 0:04:47.1]} 4... bxc6 {[%clk 0:04:53.3]} 5. e5 {[%clk 0:04:45.4]}
5... d6 {[%clk 0:04:53.2]} 6. exd6 {[%clk 0:04:41.9]} 6... exd6 {[%clk
0:04:53.1]} 7. O-O {[%clk 0:04:40.1]} 7... Nf6 {[%clk 0:04:52.6]} 8. Re1+ {[%clk
0:04:37.6]} 8... Be7 {[%clk 0:04:52]} 9. d4 {[%clk 0:04:28.2]} 9... cxd4 {[%clk
0:04:43.1]} 10. Nxd4 {[%clk 0:04:26.7]} 10... O-O {[%clk 0:04:42.1]} 11. Nxc6
{[%clk 0:04:24.9]} 1-0